bitfinex-derivatives/quotes_SOLF0:USTF0_20250904
["timestamp","ask_amount","ask_price","bid_price","bid_amount"]
[1756962108335,1.97449844,207.01,206.97,0.0312352]
[1756962108534,3.62,207.0,206.97,0.0312352]
[1756962108939,3.62,206.98,206.97,0.0312352]
[1756962109339,3.62,206.98,206.92,7.3]
[1756962109739,3.62,206.98,206.93,0.03057089]
[1756962109935,5.59449844,206.99,206.93,0.03057089]
[1756962110338,3.62,206.99,206.93,0.03057089]
[1756962111337,5.59449844,206.94,206.93,0.03057089]
[1756962111542,3.59,206.93,206.79,7.3]
[1756962111842,5.56449844,206.9,206.82,1.97449844]
[1756962112240,1.97449844,206.88,206.8,1.97449844]
[1756962112539,1.97449844,206.89,206.8,1.97449844]
[1756962112944,0.03390282,206.86,206.8,1.97449844]
[1756962114037,0.03390282,206.86,206.79,7.3]
[1756962114739,3.59,206.85,206.78,1.97449844]
[1756962115045,5.56449844,206.85,206.78,1.97449844]
[1756962115243,1.97449844,206.83,206.76,1.97449844]
[1756962115440,3.59,206.82,206.76,1.97449844]
[1756962115638,3.59,206.82,206.74,7.3]
[1756962115845,2.00573115,206.81,206.74,7.3]
[1756962116743,0.03123271,206.81,206.75,1.97449844]
[1756962116944,0.03123271,206.81,206.74,7.3]
[1756962117148,1.97449844,206.8,206.7,8.14173863]
[1756962117449,3.59,206.79,206.7,8.14173863]
[1756962118146,0.03306938,206.77,206.7,8.14173863]
[1756962122349,0.03306938,206.77,206.74,7.3]
[1756962122956,0.03306938,206.77,206.74,7.78]
[1756962124650,0.03306938,206.77,206.74,0.48]
[1756962125147,0.03306938,206.77,206.75,7.3]
[1756962125452,3.62,206.91,206.77,7.3]
[1756962126249,61.0,206.92,206.77,7.3]
[1756962126250,5.24036407,206.9,206.77,7.3]
[1756962126552,3.62,206.88,206.77,7.3]
[1756962126946,3.62,206.88,206.81,0.03125337]
[1756962128649,3.62,206.86,206.81,0.03125337]
[1756962128849,3.62,206.84,206.81,0.03125337]
[1756962129447,3.62,206.82,206.81,0.03125337]
[1756962129849,4.1,206.82,206.81,0.03125337]
[1756962130252,3.62,206.82,206.81,0.03125337]
[1756962130447,4.1,206.82,206.81,0.03125337]
[1756962130653,4.1,206.82,206.7,0.84173863]
[1756962130846,3.62,206.82,206.7,0.84173863]
[1756962131454,3.62,206.82,206.71,7.3]
[1756962131953,3.6,206.84,206.71,7.3]
[1756962132147,3.63052386,206.79,206.71,7.3]
[1756962136357,0.03052386,206.79,206.71,7.3]
[1756962137555,0.03052386,206.79,206.73,1.97619037]
[1756962138160,0.03052386,206.79,206.72,1.97619037]
[1756962138658,0.03052386,206.79,206.71,7.3]
[1756962138958,0.03052386,206.79,206.73,7.78]
[1756962139259,3.6,206.8,206.73,7.78]
[1756962139759,0.03428457,206.78,206.74,7.78]
[1756962139956,3.59,206.77,206.74,7.78]
[1756962140151,3.59,206.77,206.73,9.75619037]
[1756962140457,3.59,206.77,206.73,7.78]
[1756962140962,0.03428457,206.78,206.72,1.97619037]
[1756962140963,3.62428457,206.78,206.72,1.97619037]
[1756962141555,3.62428457,206.78,206.71,1.97619037]
[1756962142055,3.62428457,206.78,206.7,7.78]
[1756962142260,3.62428457,206.78,206.72,1.97619037]
[1756962142960,0.03428457,206.78,206.75,7.78]
[1756962143659,0.03428457,206.78,206.72,1.97619037]
[1756962145266,3.59,206.77,206.71,7.78]
[1756962147766,0.03428457,206.78,206.71,7.78]
[1756962148160,0.03428457,206.78,206.66,325.5819932]
[1756962148161,0.03428457,206.78,206.72,3.08865179]
[1756962148463,0.03428457,206.78,206.73,7.78]
[1756962149063,0.03428457,206.78,206.72,3.08865179]
[1756962149463,0.03428457,206.78,206.73,7.78]
[1756962149864,0.03428457,206.78,206.72,3.08865179]
[1756962150064,0.03428457,206.78,206.73,7.78]
[1756962150254,0.03428457,206.78,206.72,3.08865179]
[1756962150654,3.62428457,206.78,206.67,3.08865179]
[1756962150862,3.62428457,206.78,206.68,7.78]
[1756962152476,0.03428457,206.78,206.68,7.78]
[1756962152762,0.03428457,206.78,206.64,7.78]
[1756962152763,6.67865179,206.77,206.64,7.78]
[1756962153065,3.59,206.76,206.64,7.78]
[1756962153470,0.03401543,206.73,206.64,7.78]
[1756962154371,0.03401543,206.73,206.64,10.86865179]
[1756962155870,0.03401543,206.73,206.64,7.78]
[1756962156968,3.59,206.72,206.64,7.78]
[1756962157873,0.03401543,206.73,206.67,7.78]
[1756962159070,0.03401543,206.73,206.7,7.78]
[1756962159379,0.03401543,206.73,206.65,4.04557757]
[1756962159578,0.03401543,206.73,206.66,7.78]
[1756962162473,3.61,206.72,206.66,7.78]
[1756962164082,0.03401543,206.73,206.66,7.78]
[1756962166784,0.03401543,206.73,206.66,10.86865179]
[1756962167086,0.03401543,206.73,206.67,7.52]
[1756962169689,0.03401543,206.73,206.67,10.60865179]
[1756962169878,0.03401543,206.73,206.68,7.52]
[1756962170481,0.03401543,206.73,206.65,7.52]
[1756962172781,0.03401543,206.73,206.66,3.08865179]
[1756962172981,330.48285674,206.9,206.72,3.08865179]
[1756962173185,6.72865179,206.89,206.73,7.52]
[1756962173384,6.72865179,206.89,206.75,3.08865179]
[1756962173591,325.12,206.9,206.76,7.52]
[1756962173887,3.64,206.93,206.79,7.52]
[1756962174082,3.64,206.93,206.81,3.08865179]
[1756962174285,3.64,206.93,206.82,7.52]
[1756962174991,3.64,206.93,206.85,0.03544748]
[1756962175382,3.08865179,206.88,206.85,0.03544748]
[1756962175586,3.64,206.92,206.85,0.03544748]
[1756962175784,3.64,206.92,206.78,7.52]
[1756962175984,3.64,206.92,206.86,0.03584426]
[1756962176587,3.61,206.87,206.7,7.52]
[1756962176796,3.61,206.86,206.7,7.52]
[1756962177795,0.03084682,206.8,206.7,7.52]
[1756962192905,3.61,206.79,206.7,7.52]
[1756962195111,0.03084682,206.8,206.7,7.52]
[1756962198715,3.62084682,206.8,206.7,7.52]
[1756962200219,3.08790504,206.77,206.67,7.81]
[1756962200412,3.59,206.76,206.67,7.81]
[1756962200612,3.08790504,206.74,206.61,7.81]
[1756962200918,3.59,206.73,206.61,10.89790504]
[1756962201320,0.03056513,206.69,206.61,10.89790504]
[1756962202019,0.03056513,206.69,206.62,7.81]
[1756962202619,0.03056513,206.69,206.62,10.89790504]
[1756962205316,0.03056513,206.69,206.62,7.81]
[1756962205627,0.03056513,206.69,206.63,1.9780712]
[1756962206217,2.00863633,206.69,206.62,7.81]
[1756962207119,0.03056513,206.69,206.62,7.81]
[1756962207320,0.03056513,206.69,206.62,9.7880712]
[1756962208521,0.03056513,206.69,206.63,1.9780712]
[1756962209424,5.5680712,206.66,206.62,7.81]
[1756962209922,1.9780712,206.66,206.6,7.81]
[1756962210622,0.03270087,206.65,206.59,1.9780712]
[1756962211326,0.03270087,206.65,206.58,9.7880712]
[1756962211512,0.03270087,206.65,206.58,7.81]
[1756962211712,1.9780712,206.59,206.49,7.81]
[1756962211915,3.59,206.49,206.4,4.04557757]
[1756962212118,3.59,206.42,206.35,0.84303347]
[1756962212323,19.86285674,206.57,206.36,7.81]
[1756962212324,7.87,206.47,206.36,7.81]
[1756962212520,3.62565849,206.47,206.39,1.9780712]
[1756962212721,3.62565849,206.47,206.34,0.84345234]
[1756962212722,0.03565849,206.47,206.4,7.81]
[1756962212922,0.03565849,206.47,206.34,0.84345234]
[1756962212923,0.03565849,206.47,206.39,1.9780712]
[1756962213124,0.03565849,206.47,206.4,7.81]
[1756962213427,0.03132583,206.45,206.4,7.81]
[1756962213723,0.03132583,206.45,206.42,7.81]
[1756962213924,0.03132583,206.45,206.35,7.81]
[1756962214322,0.03132583,206.45,206.38,7.81]
[1756962214716,0.03132583,206.45,206.4,1.9780712]
[1756962215021,0.03132583,206.45,206.43,1.9780712]
[1756962215326,0.03132583,206.45,206.43,7.81]
[1756962215525,0.03132583,206.45,206.35,7.81]
[1756962217526,0.03132583,206.45,206.38,7.81]
[1756962223736,330.57636864,206.64,206.41,7.25]
[1756962223737,3.61,206.57,206.41,7.25]
[1756962223942,3.74862155,206.56,206.41,7.25]
[1756962224139,7.38862155,206.55,206.41,7.25]
[1756962224342,3.74816062,206.54,206.41,7.25]
[1756962224641,3.74811464,206.53,206.41,7.25]
[1756962224940,3.64,206.54,206.41,7.25]
[1756962224941,3.64,206.54,206.45,0.03134768]
[1756962225243,3.748138,206.53,206.45,0.03134768]
[1756962225442,3.64,206.54,206.45,0.03134768]
[1756962225643,3.74768923,206.53,206.45,0.03134768]
[1756962225839,3.64,206.54,206.45,0.03134768]
[1756962226044,3.74768995,206.53,206.45,0.03134768]
[1756962226244,3.64,206.54,206.45,7.28134768]
[1756962226643,3.64,206.58,206.45,7.28134768]
[1756962226947,3.64,206.58,206.45,7.25]
[1756962227844,3.64,206.58,206.45,12.50636864]
[1756962228035,3.64,206.58,206.46,7.25]
[1756962228842,3.749977,206.57,206.46,7.25]
[1756962229050,3.64,206.55,206.46,7.25]
[1756962229238,3.74954449,206.54,206.46,7.25]
[1756962229440,3.64,206.55,206.46,7.25]
[1756962229642,3.74988984,206.54,206.46,7.25]
[1756962229847,3.64,206.55,206.46,7.25]
[1756962231647,61.0,206.58,206.46,7.25]
[1756962231850,3.75183498,206.57,206.46,7.25]
[1756962232046,61.0,206.58,206.46,7.25]
[1756962232247,3.75152417,206.57,206.5,0.03078859]
[1756962232448,8.89636864,206.59,206.5,0.03078859]
[1756962232753,3.75273413,206.58,206.5,0.03078859]
[1756962233053,3.75273413,206.57,206.5,0.03078859]
[1756962233255,8.89636864,206.59,206.5,0.03078859]
[1756962233454,3.75385535,206.58,206.5,0.03078859]
[1756962233650,3.75385535,206.57,206.5,0.03078859]
[1756962233846,3.64,206.59,206.5,0.03078859]
[1756962234053,3.64,206.59,206.51,7.25]
[1756962235149,3.64,206.62,206.51,7.25]
[1756962235356,3.75608907,206.61,206.51,7.25]
[1756962235550,5.73609256,206.6,206.53,1.98000349]
[1756962235751,1.98000349,206.6,206.54,0.03462908]
[1756962235958,3.64,206.62,206.54,0.03462908]
[1756962236257,5.73643315,206.61,206.54,0.03462908]
[1756962236556,3.75642966,206.6,206.54,0.03462908]
[1756962236756,3.64,206.56,206.54,0.03462908]
[1756962237152,325.32,206.64,206.54,0.03462908]
[1756962237153,1.98000349,206.57,206.54,0.03462908]
[1756962237559,3.64,206.61,206.54,0.03462908]
[1756962237759,3.75942741,206.6,206.54,0.03462908]
[1756962238058,3.64,206.58,206.54,0.03462908]
[1756962238258,7.40126173,206.57,206.54,0.03462908]
[1756962238460,3.64,206.57,206.54,0.03462908]
[1756962238964,126.98,206.61,206.54,0.03462908]
[1756962239152,3.76115271,206.6,206.54,0.03462908]
[1756962239349,3.64,206.58,206.54,0.03462908]
[1756962239551,3.76115271,206.57,206.54,0.03462908]
[1756962239750,3.64,206.58,206.54,0.03462908]
[1756962240255,3.64,206.63,206.54,0.03462908]
[1756962240458,3.76523344,206.62,206.55,7.25]
[1756962240756,3.64,206.63,206.55,7.25]
[1756962240958,3.76548579,206.62,206.55,7.25]
[1756962241258,3.76764164,206.61,206.55,7.25]
[1756962241459,3.64,206.63,206.55,7.25]
[1756962241652,3.767642,206.62,206.55,7.25]
[1756962241851,3.767642,206.61,206.55,7.25]
[1756962242061,3.64,206.63,206.55,7.25]
[1756962242263,3.76815323,206.62,206.55,7.25]
[1756962242456,3.76815323,206.61,206.54,0.03462908]
[1756962242759,3.76815323,206.6,206.54,0.03462908]
[1756962242958,3.76973017,206.59,206.54,0.03462908]
[1756962243159,3.64,206.65,206.54,0.03462908]
[1756962243358,3.64,206.63,206.54,0.03462908]
[1756962243563,3.77244524,206.62,206.54,0.03462908]
[1756962243762,3.77244524,206.61,206.54,0.03462908]
[1756962243958,3.77244524,206.6,206.54,0.03462908]
[1756962244161,3.77244524,206.59,206.54,0.03462908]
[1756962244361,3.64,206.57,206.54,0.03462908]
[1756962244664,3.64,206.55,206.54,0.03462908]
[1756962244860,7.41244524,206.55,206.54,0.03462908]
[1756962247369,3.77244524,206.55,206.54,0.03462908]
[1756962248467,3.64,206.55,206.54,0.03462908]
[1756962249063,7.41244524,206.55,206.54,0.03462908]
[1756962249266,3.77244524,206.55,206.54,0.03462908]
[1756962249860,3.64,206.56,206.54,0.03462908]
[1756962250065,3.77244524,206.55,206.54,0.03462908]
[1756962251062,3.64,206.6,206.54,0.03462908]
[1756962251265,3.64,206.58,206.54,0.03462908]
[1756962251469,3.77244524,206.57,206.54,0.03462908]
[1756962251666,3.77244524,206.56,206.54,0.03462908]
[1756962251861,3.77244524,206.55,206.54,0.03462908]
[1756962252063,7.40244524,206.57,206.54,0.03462908]
[1756962252268,3.77244524,206.56,206.54,0.03462908]
[1756962252671,3.77244524,206.55,206.54,0.03462908]
[1756962252867,7.40244524,206.55,206.54,0.03462908]
[1756962255771,7.40244524,206.55,206.44,7.85]
[1756962255772,3.59,206.54,206.44,7.85]
[1756962256071,3.59,206.52,206.44,7.85]
[1756962256279,3.77244524,206.51,206.44,7.85]
[1756962256476,3.77244524,206.5,206.44,7.85]
[1756962256677,7.36244524,206.49,206.44,7.85]
[1756962256877,3.77244524,206.48,206.44,7.85]
[1756962257079,3.77244524,206.47,206.44,7.85]
[1756962257379,3.77244524,206.46,206.38,7.85]
[1756962257678,3.59,206.54,206.4,7.85]
[1756962257874,3.79490295,206.53,206.4,7.85]
[1756962258178,3.79490295,206.52,206.4,7.85]
[1756962258379,7.38490295,206.51,206.4,7.85]
[1756962258679,0.0347217,206.49,206.4,7.85]
[1756962258980,3.79490295,206.48,206.4,7.85]
[1756962259172,3.79490295,206.47,206.4,7.85]
[1756962259374,3.79490295,206.46,206.4,7.85]
[1756962259678,0.0347217,206.49,206.37,8.56]
[1756962259679,3.79490295,206.45,206.38,7.85]
[1756962259881,0.0347217,206.49,206.38,7.85]
[1756962260176,3.79557921,206.48,206.38,7.85]
[1756962260474,0.03720248,206.46,206.38,7.85]
[1756962260773,7.38557921,206.45,206.38,7.85]
[1756962260976,3.79557921,206.44,206.38,7.85]
[1756962261175,3.79557921,206.43,206.38,7.85]
[1756962261375,3.79557921,206.42,206.38,7.85]
[1756962261574,3.79557921,206.41,206.38,7.85]
[1756962261776,3.59,206.45,206.38,7.85]
[1756962261976,3.79435497,206.44,206.38,7.85]
[1756962262176,3.79435497,206.44,206.35,7.85]
[1756962262177,3.79435497,206.43,206.35,7.85]
[1756962263175,3.79390097,206.42,206.34,0.84345234]
[1756962263371,3.79390097,206.41,206.32,7.85]
[1756962263575,3.79390097,206.4,206.32,7.85]
[1756962263774,61.0,206.48,206.32,7.85]
[1756962263775,3.79390097,206.39,206.33,5.25149755]
[1756962263977,3.59,206.48,206.34,7.85]
[1756962263978,0.03432354,206.38,206.34,7.85]
[1756962264174,0.03432354,206.38,206.33,9.29566103]
[1756962264374,3.59,206.48,206.34,7.85]
[1756962264577,0.03181251,206.38,206.34,7.85]
[1756962264773,3.59,206.48,206.34,7.85]
[1756962264973,21.65311167,206.47,206.34,7.85]
[1756962265179,3.79311167,206.46,206.39,0.03642664]
[1756962265479,3.79311167,206.46,206.35,5.25149755]
[1756962265888,3.79311167,206.45,206.35,5.25149755]
[1756962266186,3.79311167,206.44,206.35,5.25149755]
[1756962266384,35.38,206.47,206.38,0.03716174]
[1756962266582,3.79306684,206.46,206.38,0.03716174]
[1756962266782,3.79306684,206.45,206.38,0.03716174]
[1756962266981,3.79306684,206.44,206.38,0.03716174]
[1756962267286,52.62,206.47,206.38,0.03716174]
[1756962267587,3.79336287,206.46,206.38,0.03716174]
[1756962267787,3.79336287,206.45,206.38,0.03716174]
[1756962267989,3.79336287,206.44,206.38,0.03716174]
[1756962268187,19.94,206.47,206.38,0.03716174]
[1756962268488,7.5,206.45,206.38,0.03716174]
[1756962268684,3.79292276,206.44,206.38,0.03716174]
[1756962268884,3.79292276,206.43,206.33,7.85]
[1756962269083,7.5,206.41,206.39,0.03321462]
[1756962269284,3.79056147,206.4,206.39,0.03321462]
[1756962269487,137.01056147,206.4,206.39,0.03321462]
[1756962269786,7.5,206.4,206.39,0.03321462]
[1756962269984,133.2,206.4,206.39,0.03321462]
[1756962270386,7.5,206.4,206.39,0.03321462]
[1756962270883,7.5,206.4,206.28,7.85]
[1756962271187,70.6,206.39,206.28,7.85]
[1756962271586,125.6,206.38,206.28,7.85]
[1756962271989,0.03160209,206.35,206.28,7.85]
[1756962272186,0.03160209,206.35,206.18,281.4171022]
[1756962272187,7.5,206.34,206.24,7.85]
[1756962272890,0.03372981,206.31,206.24,7.85]
[1756962273691,325.54,206.45,206.25,8.84838089]
[1756962273692,7.5,206.43,206.25,8.84838089]
[1756962273890,7.5,206.43,206.26,7.85]
[1756962274287,72.0,206.43,206.26,7.85]
[1756962274490,7.5,206.43,206.26,7.85]
[1756962275088,7.5,206.43,206.33,7.85]
[1756962275686,61.0,206.5,206.33,7.85]
[1756962275891,106.48,206.49,206.33,7.85]
[1756962276091,125.6,206.48,206.33,7.85]
[1756962276286,125.6,206.48,206.39,0.03503214]
[1756962276492,7.5,206.47,206.39,0.03503214]
[1756962276685,61.0,206.5,206.39,0.03503214]
[1756962276686,7.5,206.45,206.39,0.03503214]
[1756962277297,127.64,206.45,206.39,0.03503214]
[1756962277793,61.0,206.5,206.39,0.03503214]
[1756962278000,127.22,206.49,206.39,0.03503214]
[1756962278397,7.5,206.49,206.39,0.03503214]
[1756962278794,7.5,206.47,206.39,0.03503214]
[1756962279695,125.6,206.46,206.39,0.03503214]
[1756962280197,7.5,206.45,206.39,0.03503214]
[1756962280791,61.0,206.5,206.39,0.03503214]
[1756962280993,7.5,206.49,206.39,0.03503214]
[1756962281196,125.6,206.48,206.39,0.03503214]
[1756962281694,7.5,206.47,206.39,0.03503214]
[1756962282301,125.6,206.46,206.39,0.03503214]
[1756962283200,7.34,206.45,206.39,0.03503214]
[1756962284500,7.34,206.46,206.39,0.03503214]
[1756962288304,7.34,206.54,206.39,0.03503214]
[1756962288501,7.34,206.54,206.4,7.57]
[1756962288798,125.58,206.53,206.44,0.0351602]
[1756962289000,7.34,206.52,206.44,0.0351602]
[1756962289595,125.58,206.51,206.44,0.0351602]
[1756962289997,7.34,206.52,206.44,0.0351602]
[1756962290204,7.34,206.56,206.44,10.70182423]
[1756962290697,7.34,206.56,206.48,0.03468887]
[1756962291306,125.58,206.57,206.48,0.03468887]
[1756962291505,332.94,206.59,206.48,0.03468887]
[1756962291802,125.56,206.58,206.48,0.03468887]
[1756962293297,332.94,206.59,206.5,10.66666403]
[1756962294002,332.94,206.59,206.52,0.03253747]
[1756962294704,458.48,206.59,206.52,0.03253747]
[1756962295109,332.94,206.59,206.52,0.03253747]
[1756962295302,7.34,206.59,206.52,0.03253747]
[1756962296203,10.43666403,206.64,206.52,0.03253747]
[1756962296403,125.52,206.63,206.52,0.03253747]
[1756962297005,125.52,206.62,206.52,0.03253747]
[1756962297201,125.52,206.62,206.53,7.57]
[1756962297407,125.52,206.62,206.53,10.66666403]
[1756962298406,125.5,206.62,206.53,10.66666403]
[1756962299808,7.34,206.64,206.53,10.66666403]
[1756962300009,119.34,206.63,206.53,10.66666403]
[1756962300209,7.34,206.64,206.56,3.09666403]
[1756962300405,7.34,206.64,206.56,10.7021931]
[1756962301111,7.34,206.64,206.56,7.60552907]
[1756962301307,0.19189,206.66,206.56,7.60552907]
[1756962301708,0.19189,206.66,206.59,7.57]
[1756962302206,0.19189,206.66,206.61,3.09666403]
[1756962302408,0.19189,206.66,206.48,7.57]
[1756962302606,0.19189,206.66,206.62,7.57]
[1756962303108,0.19189,206.66,206.62,7.60614739]
[1756962304309,0.19189,206.66,206.63,7.57]
[1756962304711,0.19189,206.66,206.62,3.13281142]
[1756962305305,7.34,206.7,206.63,7.57]
[1756962306706,7.34,206.77,206.65,3.09666403]
[1756962306903,7.34,206.74,206.65,3.09666403]
[1756962307306,7.34,206.74,206.67,0.0370781]
[1756962307506,7.34,206.74,206.68,3.09666403]
[1756962307710,7.34,206.74,206.67,0.0370781]
[1756962310116,7.34,206.74,206.67,3.13374213]
[1756962310909,7.34,206.74,206.67,0.0370781]
[1756962312810,132.72,206.74,206.67,0.0370781]
[1756962313006,125.38,206.73,206.67,0.0370781]
[1756962313810,7.61,206.72,206.67,0.0370781]
[1756962314214,7.61,206.75,206.67,0.0370781]
[1756962314515,7.61,206.73,206.67,0.0370781]
[1756962314811,7.6421737,206.73,206.67,0.0370781]
[1756962315813,0.0321737,206.73,206.67,0.0370781]
[1756962316018,0.0321737,206.73,206.72,3.09666403]
[1756962316217,0.0321737,206.73,206.72,10.55666403]
[1756962316413,0.0321737,206.73,206.72,7.94]
[1756962316612,0.0321737,206.73,206.72,11.03666403]
[1756962317811,0.0321737,206.73,206.72,10.55666403]
[1756962318317,7.6421737,206.73,206.69,3.09666403]
[1756962319614,7.6421737,206.73,206.67,7.4970781]
[1756962320613,7.6421737,206.73,206.67,10.59374213]
[1756962321215,7.6421737,206.73,206.67,7.4970781]
[1756962321415,7.6421737,206.73,206.67,10.59374213]
[1756962322119,7.6421737,206.73,206.67,0.0370781]
[1756962322318,7.6421737,206.73,206.58,7.46]
[1756962322514,10.73883773,206.73,206.59,3.09666403]
[1756962322814,10.70666403,206.73,206.59,3.09666403]
[1756962323021,10.70666403,206.73,206.58,7.46]
[1756962323320,10.70666403,206.73,206.58,10.55666403]
[1756962323321,7.61,206.72,206.58,10.55666403]
[1756962323918,0.03624597,206.68,206.61,3.09666403]
[1756962324115,0.03624597,206.68,206.61,10.55666403]
[1756962324311,0.03624597,206.68,206.65,7.46]
[1756962324516,0.03624597,206.68,206.58,3.09666403]
[1756962324517,0.03624597,206.68,206.67,10.55666403]
[1756962324713,7.61,206.76,206.67,10.55666403]
[1756962324918,0.03727204,206.7,206.67,3.09666403]
[1756962325222,0.03727204,206.7,206.48,7.46]
[1756962325413,0.03727204,206.7,206.58,8.34723891]
[1756962325613,7.61,206.72,206.59,7.46]
[1756962325810,0.03075396,206.66,206.59,7.46]
[1756962326520,0.03075396,206.66,206.63,7.46]
[1756962326923,7.61,206.76,206.65,7.46]
[1756962327216,0.03293276,206.67,206.62,8.34723891]
[1756962327415,7.61,206.76,206.61,8.34723891]
[1756962327620,7.61,206.76,206.62,7.46]
[1756962327621,0.03427831,206.67,206.62,7.46]
[1756962328917,0.03427831,206.67,206.61,8.34723891]
[1756962329222,0.03427831,206.67,206.62,7.46]
[1756962329418,0.03427831,206.67,206.64,5.24205544]
[1756962329821,0.03427831,206.67,206.65,7.46]
[1756962330012,0.03427831,206.67,206.59,7.46]
[1756962330322,0.03427831,206.67,206.64,7.46]
[1756962330713,7.61,206.76,206.64,7.94]
[1756962330915,7.61,206.76,206.64,7.46]
[1756962331423,7.61,206.76,206.68,7.46]
[1756962331618,7.61,206.76,206.66,5.24205544]
[1756962331823,7.61,206.76,206.63,7.46]
[1756962334823,7.61,206.76,206.6,7.46]
[1756962337923,16.88,206.75,206.6,7.46]
[1756962338125,7.61,206.74,206.6,7.46]
[1756962338624,7.61,206.74,206.61,5.24205544]
[1756962338822,7.61,206.74,206.62,7.46]
[1756962342827,7.61,206.74,206.66,7.49]
[1756962343124,0.18244,206.77,206.66,7.49]
[1756962345129,0.18244,206.77,206.7,7.49]
[1756962345818,0.18244,206.77,206.72,5.24205544]
[1756962346021,0.18244,206.77,206.73,7.49]
[1756962346224,0.18244,206.77,206.72,5.24205544]
[1756962347129,0.18244,206.77,206.73,7.49]
[1756962347524,0.18244,206.77,206.65,127.53582463]
[1756962347525,0.18244,206.77,206.66,7.49]
[1756962347731,1.97608291,206.74,206.62,7.49]
[1756962347929,1.97608291,206.72,206.65,1.97608291]
[1756962348327,7.46,206.73,206.67,1.97608291]
[1756962348630,7.46,206.73,206.66,7.49]
[1756962348631,7.46,206.73,206.69,1.97608291]
[1756962349032,7.46,206.73,206.68,1.97608291]
[1756962349228,7.46,206.75,206.68,1.97608291]
[1756962349426,1.97608291,206.74,206.65,1.97608291]
[1756962349628,7.46,206.73,206.65,1.97608291]
[1756962349826,9.43608291,206.73,206.67,1.97608291]
[1756962350231,9.43608291,206.73,206.66,1.97608291]
[1756962350734,7.46,206.73,206.66,1.97608291]
[1756962351322,0.18244,206.77,206.72,1.97608291]
[1756962351530,0.18244,206.77,206.72,7.49]
[1756962351925,0.18244,206.77,206.68,7.49]
[1756962354729,0.18244,206.77,206.71,5.24006775]
[1756962354923,0.18244,206.77,206.72,7.49]
[1756962355125,0.18244,206.77,206.72,0.03559716]
[1756962355326,0.18244,206.77,206.73,7.49]
[1756962355730,0.18244,206.77,206.72,5.27566491]
[1756962355933,0.18244,206.77,206.72,0.03559716]
[1756962356136,7.46,206.76,206.72,0.03559716]
[1756962356836,0.18244,206.77,206.72,0.03559716]
[1756962357232,7.46,206.76,206.72,0.03559716]
[1756962357425,0.18244,206.77,206.72,0.03559716]
[1756962358532,7.46,206.76,206.72,0.03559716]
[1756962359231,0.18244,206.77,206.72,0.03559716]
[1756962359432,7.46,206.76,206.72,0.03559716]
[1756962359729,0.18244,206.77,206.72,0.03559716]
[1756962360331,7.46,206.76,206.72,0.03559716]
[1756962361736,0.18244,206.77,206.72,0.03559716]
[1756962361942,7.46,206.76,206.72,0.03559716]
[1756962362237,0.18244,206.77,206.72,0.03559716]
[1756962362638,7.46,206.76,206.72,0.03559716]
[1756962363435,0.18244,206.77,206.72,0.03559716]
[1756962363938,7.46,206.76,206.72,0.03559716]
[1756962364136,0.18244,206.77,206.72,0.03559716]
[1756962364338,7.46,206.76,206.72,0.03559716]
[1756962364837,0.18244,206.77,206.73,7.49]
[1756962365236,7.46,206.76,206.72,0.03559716]
[1756962365445,0.18244,206.77,206.72,0.03559716]
[1756962365739,7.46,206.76,206.72,0.03559716]
[1756962365936,0.18244,206.77,206.72,0.03559716]
[1756962366137,7.46,206.76,206.72,0.03559716]
[1756962366937,0.18244,206.77,206.72,0.03559716]
[1756962367134,7.46,206.76,206.72,0.03559716]
[1756962367338,0.18244,206.77,206.72,0.03559716]
[1756962367737,0.18244,206.77,206.72,7.52559716]
[1756962367931,7.64244,206.77,206.72,7.52559716]